[Event "2nd Kalyan Dombivali 2019"]
[Site "Kalyan"]
[Date "2019.01.29"]
[Round "1.1"]
[White "Krish, Doiphode"]
[Black "Gusain, Himal"]
[Result "0-1"]
[ECO "B00"]
[WhiteElo "1126"]
[BlackElo "2371"]
[Annotator "ChessBase"]
[PlyCount "59"]
[EventDate "2019.01.28"]
[EventType "swiss"]
[EventRounds "10"]
[EventCountry "IND"]
[SourceTitle "playchess.com"]
[Source "ChessBase"]
[SourceQuality "1"]
[TimeControl "5400+30"]

1. e4 {[%emt 0:00:00]} d6 {[%emt 0:00:00]} 2. Nf3 {[%emt 0:04:15]} Nf6 {[%emt 0:00:00]} 3. Nc3 {[%emt 0:02:39]} g6 {[%emt 0:00:01]} 4. Bc4 {[%emt 0:05:31]} Bg7 {[%emt 0:00:12]} 5. d4 {[%emt 0:03:34]} c6 {[%emt 0:00:22]} 6. Bb3 {[%emt 0:06:30]} O-O {[%emt 0:00:31]} 7. O-O {[%emt 0:01:00]} Qc7 {[%emt 0:00:09]} 8. Ng5 {[%emt 0:04:10]} e5 {[%emt 0:03:59]} 9. d5 {[%emt 0:02:11]} h6 {[%emt 0:00:29]} 10. Nf3 {[%emt 0:08:34]} c5 {[%emt 0:01:16]} 11. Bc4 {[%emt 0:01:43]} Qe7 {[%emt 0:01:32]} 12. h3 {[%emt 0:04:10]} Nh7 {[%emt 0:00:28]} 13. Nh2 {[%emt 0:12:51]} f5 {[%emt 0:01:30]} 14. exf5 {[%emt 0:06:11]} gxf5 {[%emt 0:00:11]} 15. Qh5 {[%emt 0:03:34]} Bd7 {[%emt 0:01:58]} 16. Be3 {[%emt 0:07:22]} Be8 {[%emt 0:00:15]} 17. Qe2 {[%emt 0:00:47]} Nd7 {[%emt 0:00:08]} 18. Na4 {[%emt 0:01:40]} Kh8 {[%emt 0:01:20]} 19. Nc3 {[%emt 0:05:25]} Nb6 {[%emt 0:01:21]} 20. a3 {[%emt 0:01:28]} Nxc4 {[%emt 0:01:05]} 21. Qxc4 {[%emt 0:00:31]} f4 {[%emt 0:00:09]} 22. Bd2 {[%emt 0:01:19]} Ng5 {[%emt 0:00:34]} 23. f3 {[%emt 0:06:06]} Bg6 {[%emt 0:00:48]} 24. Rfe1 {[%emt 0:01:09]} Qd7 {[%emt 0:01:31]} 25. Rac1 {[%emt 0:02:32]} e4 {[%emt 0:01:04]} 26. fxe4 {[%emt 0:05:32]} f3 {[%emt 0:01:06]} 27. Qf1 {[%emt 0:01:42]} f2+ {[%emt 0:00:10]} 28. Kh1 {[%emt 0:00:58]} fxe1=Q {[%emt 0:00:14]} 29. Qxe1 {[%emt 0:00:04]} Rae8 {[%emt 0:01:56]} 30. Qh4 {[%emt 0:01:32]} 0-1

[Event "2nd Kalyan Dombivali 2019"]
[Site "Kalyan"]
[Date "2019.01.29"]
[Round "1.4"]
[White "Saurabh, Anand"]
[Black "Dhruv, Patil"]
[Result "1-0"]
[ECO "C44"]
[WhiteElo "2210"]
[BlackElo "1119"]
[Annotator "RC"]
[PlyCount "49"]
[EventDate "2019.01.28"]
[EventType "swiss"]
[EventRounds "10"]
[EventCountry "IND"]
[SourceTitle "playchess.com"]
[Source "ChessBase"]
[SourceQuality "1"]
[TimeControl "5400+30"]

1. e4 {[%emt 0:00:00]} e5 {[%emt 0:00:00]} 2. Nf3 {[%emt 0:00:00]} Nc6 {[%emt 0:00:00]} 3. d4 {[%emt 0:00:00]} exd4 {[%emt 0:00:00]} 4. Nxd4 {[%emt 0:00:00]} Bb4+ {[%emt 0:00:18]} 5. c3 {[%emt 0:00:24]} Bc5 {[%emt 0:00:45]} 6. Be3 {[%emt 0:03:08]} Qe7 {[%emt 0:12:14]} 7. Bd3 {[%emt 0:12:16]} Nxd4 {[%emt 0:01:05]} 8. cxd4 {[%emt 0:00:07]} Bb4+ {[%emt 0:01:13]} 9. Nc3 {[%emt 0:00:07]} Nf6 {[%emt 0:00:23]} 10. O-O {[%emt 0:00:43]} Bxc3 {[%emt 0:14:15]} 11. bxc3 {[%emt 0:00:02]} Nxe4 {[%emt 0:00:30]} 12. Re1 {[%emt 0:00:07]} d5 {[%emt 0:00:26]} 13. Bf4 {[%emt 0:06:27]} Be6 {[%emt 0:18:53]} 14. Bxe4 {[%emt 0:00:19]} dxe4 {[%emt 0:00:09]} 15. Rxe4 {[%emt 0:00:05]} O-O-O {[%emt 0:01:13]} 16. d5 {[%emt 0:02:02]} Qf6 {[%emt 0:07:42]} 17. Rc4 {[%emt 0:07:57]} c6 {[%emt 0:00:56]} 18. Qa4 {[%emt 0:10:27]} Bxd5 {[%emt 0:06:23]} 19. Rb4 {[%emt 0:01:02]} Qxc3 {[%emt 0:00:54]} 20. Rc1 {[%emt 0:01:05]} Rhe8 {[%emt 0:00:34]} 21. Rbb1 {[%emt 0:00:14]} Qd3 {[%emt 0:10:07]} 22. Qxa7 {[%emt 0:00:47]} Qa6 {[%emt 0:01:11]} 23. Qb8+ {[%emt 0:00:17]} Kd7 {[%emt 0:00:38]} 24. Qd6+ {[%emt 0:00:00]} Kc8 {[%emt 0:00:42]} 25. Qc7# 1-0

[Event "2nd Kalyan Dombivali 2019"]
[Site "Kalyan"]
[Date "2019.01.29"]
[Round "1.5"]
[White "Sawant, Hirak Manohar"]
[Black "Snehal, Bhosale"]
[Result "0-1"]
[ECO "C55"]
[WhiteElo "1117"]
[BlackElo "2135"]
[Annotator "RC"]
[PlyCount "112"]
[EventDate "2019.01.28"]
[EventType "swiss"]
[EventRounds "10"]
[EventCountry "IND"]
[SourceTitle "playchess.com"]
[Source "ChessBase"]
[SourceQuality "1"]
[TimeControl "5400+30"]

1. e4 {[%emt 0:00:00]} e5 {[%emt 0:04:29]} 2. Nf3 {[%emt 0:00:12]} Nc6 {[%emt 0:00:06]} 3. Bc4 {[%emt 0:00:47]} Nf6 {[%emt 0:00:12]} 4. d3 {[%emt 0:00:52]} Be7 {[%emt 0:00:13]} 5. O-O {[%emt 0:00:14]} O-O {[%emt 0:00:18]} 6. Re1 {[%emt 0:03:58]} d6 {[%emt 0:00:25]} 7. Nbd2 {[%emt 0:03:20]} Na5 {[%emt 0:02:49]} 8. Bb3 {[%emt 0:03:26]} Nxb3 {[%emt 0:02:12]} 9. Nxb3 {[%emt 0:00:06]} Re8 {[%emt 0:04:47]} 10. c3 {[%emt 0:05:42]} h6 {[%emt 0:08:40]} 11. d4 {[%emt 0:11:12]} exd4 {[%emt 0:03:19]} 12. Nbxd4 {[%emt 0:03:27]} Bf8 {[%emt 0:02:44]} 13. e5 {[%emt 0:04:25]} dxe5 {[%emt 0:02:53]} 14. Nxe5 {[%emt 0:03:22]} c5 {[%emt 0:00:33]} 15. Ndf3 {[%emt 0:08:49]} Qxd1 {[%emt 0:02:40]} 16. Rxd1 {[%emt 0:00:54]} Bf5 {[%emt 0:00:35]} 17. Bf4 {[%emt 0:04:43]} g5 {[%emt 0:04:48]} 18. Bg3 {[%emt 0:04:29]} Ne4 {[%emt 0:01:23]} 19. Rd5 {[%emt 0:07:25]} g4 {[%emt 0:07:56]} 20. Nd2 {[%emt 0:04:24]} Nxg3 {[%emt 0:03:08]} 21. hxg3 {[%emt 0:00:49]} Be6 {[%emt 0:01:16]} 22. Rd3 {[%emt 0:00:04]} Rad8 {[%emt 0:00:13]} 23. Ne4 {[%emt 0:08:50]} Kg7 {[%emt 0:02:12]} 24. Rad1 {[%emt 0:04:44]} Rxd3 {[%emt 0:04:31]} 25. Nxd3 {[%emt 0:00:05]} Rd8 {[%emt 0:02:35]} 26. f3 {[%emt 0:03:24]} Bxa2 {[%emt 0:06:37]} 27. fxg4 {[%emt 0:01:35]} Bc4 {[%emt 0:01:49]} 28. Ndf2 {[%emt 0:00:35]} Rxd1+ {[%emt 0:00:34]} 29. Nxd1 {[%emt 0:00:03]} b5 {[%emt 0:00:20]} 30. Ne3 {[%emt 0:00:37]} Bd3 {[%emt 0:00:26]} 31. Nf5+ {[%emt 0:00:39]} Kg6 {[%emt 0:05:24]} 32. Nh4+ {[%emt 0:00:27]} Kh7 {[%emt 0:00:39]} 33. Nf6+ {[%emt 0:00:37]} Kg7 {[%emt 0:00:18]} 34. Ne8+ {[%emt 0:00:32]} Kh8 {[%emt 0:00:08]} 35. Nf3 {[%emt 0:00:53]} c4 {[%emt 0:02:23]} 36. Ne5 {[%emt 0:01:22]} Bc5+ {[%emt 0:01:25]} 37. Kh2 {[%emt 0:00:12]} b4 {[%emt 0:01:07]} 38. Nxf7+ {[%emt 0:01:01]} Kh7 {[%emt 0:00:34]} 39. cxb4 {[%emt 0:01:23]} Bd4 {[%emt 0:00:15]} 40. Nfd6 {[%emt 0:06:50]} Bxb2 {[%emt 0:00:14]} 41. Nxc4 {[%emt 0:01:14]} Bxc4 {[%emt 0:00:08]} 42. Nd6 {[%emt 0:00:10]} Bd3 {[%emt 0:00:12]} 43. b5 {[%emt 0:00:59]} Ba3 {[%emt 0:00:10]} 44. Nc8 {[%emt 0:01:02]} Bc5 {[%emt 0:00:08]} 45. Kh3 {[%emt 0:00:24]} Bxb5 {[%emt 0:00:15]} 46. Nxa7 {[%emt 0:00:07]} Bxa7 {[%emt 0:00:07]} 47. Kh4 {[%emt 0:00:05]} Kg6 {[%emt 0:00:13]} 48. Kh3 {[%emt 0:00:35]} Kg5 {[%emt 0:00:26]} 49. Kh2 {[%emt 0:00:03]} Kxg4 {[%emt 0:00:07]} 50. Kh1 {[%emt 0:00:03]} Bb8 {[%emt 0:00:13]} 51. Kh2 {[%emt 0:00:14]} h5 {[%emt 0:00:08]} 52. Kh1 {[%emt 0:00:19]} Kxg3 {[%emt 0:00:16]} 53. Kg1 {[%emt 0:00:04]} h4 {[%emt 0:00:18]} 54. Kh1 {[%emt 0:00:05]} h3 {[%emt 0:00:10]} 55. Kg1 {[%emt 0:00:17]} Ba7+ {[%emt 0:00:08]} 56. Kh1 {[%emt 0:00:03]} hxg2# {[%emt 0:00:07]} 0-1

[Event "2nd Kalyan Dombivali 2019"]
[Site "Kalyan"]
[Date "2019.01.29"]
[Round "1.6"]
[White "Kumar, Gaurav"]
[Black "Kotur, Aryan"]
[Result "1-0"]
[ECO "B19"]
[WhiteElo "2128"]
[BlackElo "1116"]
[Annotator "RC"]
[PlyCount "69"]
[EventDate "2019.01.28"]
[EventType "swiss"]
[EventRounds "10"]
[EventCountry "IND"]
[SourceTitle "playchess.com"]
[Source "ChessBase"]
[SourceQuality "1"]
[TimeControl "5400+30"]

1. e4 {[%emt 0:00:00]} c6 {[%emt 0:00:00]} 2. d4 {[%emt 0:00:00]} d5 {[%emt 0:00:00]} 3. Nd2 {[%emt 0:01:49]} dxe4 {[%emt 0:00:11]} 4. Nxe4 {[%emt 0:00:04]} Bf5 {[%emt 0:00:19]} 5. Ng3 {[%emt 0:00:04]} Bg6 {[%emt 0:00:10]} 6. h4 {[%emt 0:00:04]} h6 {[%emt 0:00:03]} 7. Nf3 {[%emt 0:00:05]} Nd7 {[%emt 0:00:07]} 8. h5 {[%emt 0:00:05]} Bh7 {[%emt 0:00:04]} 9. Bd3 {[%emt 0:00:05]} Bxd3 {[%emt 0:00:08]} 10. Qxd3 {[%emt 0:00:07]} Ngf6 {[%emt 0:00:03]} 11. Bd2 {[%emt 0:00:21]} e6 {[%emt 0:00:05]} 12. O-O-O {[%emt 0:00:11]} Bd6 {[%emt 0:00:07]} 13. Ne4 {[%emt 0:01:48]} Nxe4 {[%emt 0:00:25]} 14. Qxe4 {[%emt 0:00:03]} Qc7 {[%emt 0:01:01]} 15. Kb1 {[%emt 0:00:24]} O-O-O {[%emt 0:00:15]} 16. c4 {[%emt 0:00:29]} c5 {[%emt 0:06:29]} 17. Bc3 {[%emt 0:01:48]} Nf6 {[%emt 0:05:24]} 18. Qe2 {[%emt 0:00:04]} Kb8 {[%emt 0:05:20]} 19. Rc1 {[%emt 0:05:13]} Rhe8 {[%emt 0:04:26]} 20. Rh4 {[%emt 0:01:51]} Be7 {[%emt 0:02:32]} 21. dxc5 {[%emt 0:10:19]} Qxc5 {[%emt 0:03:38]} 22. Ne5 {[%emt 0:02:38]} Rf8 {[%emt 0:01:50]} 23. a3 {[%emt 0:01:44]} Qb6 {[%emt 0:05:03]} 24. c5 {[%emt 0:20:05]} Bxc5 {[%emt 0:09:29]} 25. Nc4 {[%emt 0:02:47]} Qc7 {[%emt 0:02:34]} 26. Be5 {[%emt 0:00:15]} Bd6 {[%emt 0:00:24]} 27. Nxd6 {[%emt 0:00:13]} Qd7 {[%emt 0:01:06]} 28. Nb5+ {[%emt 0:04:08]} Ka8 {[%emt 0:00:21]} 29. Nc7+ {[%emt 0:00:10]} Kb8 {[%emt 0:00:08]} 30. Rd4 {[%emt 0:00:20]} Qxd4 {[%emt 0:00:23]} 31. Bxd4 {[%emt 0:00:16]} Rxd4 {[%emt 0:00:08]} 32. Qe5 {[%emt 0:00:03]} Re4 {[%emt 0:00:13]} 33. Na6+ {[%emt 0:00:02]} Ka8 {[%emt 0:00:09]} 34. Qb8+ {[%emt 0:00:02]} Rxb8 {[%emt 0:00:02]} 35. Nc7# {[%emt 0:00:08]} 1-0

[Event "2nd Kalyan Dombivali 2019"]
[Site "Kalyan"]
[Date "2019.01.29"]
[Round "1.7"]
[White "Lohakare, Pratham"]
[Black "Satkar, Chirag"]
[Result "0-1"]
[ECO "E92"]
[WhiteElo "1112"]
[BlackElo "2071"]
[Annotator "NA RC"]
[PlyCount "88"]
[EventDate "2019.01.28"]
[EventType "swiss"]
[EventRounds "10"]
[EventCountry "IND"]
[SourceTitle "playchess.com"]
[Source "ChessBase"]
[SourceQuality "1"]
[TimeControl "5400+30"]

1. d4 {[%emt 0:00:00]} Nf6 {[%emt 0:00:00]} 2. c4 {[%emt 0:00:00]} g6 {[%emt 0:00:00]} 3. Nf3 {[%emt 0:00:16]} Bg7 {[%emt 0:00:27]} 4. Nc3 {[%emt 0:00:16]} O-O {[%emt 0:02:04]} 5. e4 {[%emt 0:00:57]} d6 {[%emt 0:00:23]} 6. Be3 {[%emt 0:00:27]} e5 {[%emt 0:03:12]} 7. Be2 {[%emt 0:04:47]} Ng4 {[%emt 0:04:02]} 8. Qd2 {[%emt 0:04:38]} Nxe3 {[%emt 0:01:43]} 9. Qxe3 {[%emt 0:00:03]} Nc6 {[%emt 0:06:33]} 10. d5 {[%emt 0:03:01]} Nd4 {[%emt 0:02:53]} 11. Rc1 {[%emt 0:02:37]} f5 {[%emt 0:01:10]} 12. O-O {[%emt 0:05:22]} Bd7 {[%emt 0:10:52]} 13. Rfe1 {[%emt 0:11:08]} f4 {[%emt 0:05:31]} 14. Qd2 {[%emt 0:03:33]} Nxe2+ {[%emt 0:00:24]} 15. Qxe2 {[%emt 0:00:54]} g5 {[%emt 0:00:09]} 16. Nd2 {[%emt 0:06:40]} g4 {[%emt 0:00:26]} 17. f3 {[%emt 0:01:26]} h5 {[%emt 0:01:42]} 18. Rf1 {[%emt 0:02:35]} Kh8 {[%emt 0:00:46]} 19. Kh1 {[%emt 0:03:28]} Rg8 {[%emt 0:01:30]} 20. fxg4 {[%emt 0:04:00]} hxg4 {[%emt 0:01:15]} 21. h3 {[%emt 0:00:59]} Qh4 {[%emt 0:02:04]} 22. Qf2 {[%emt 0:00:52]} Qh6 {[%emt 0:03:04]} 23. Rg1 {[%emt 0:05:06]} Bf6 {[%emt 0:03:44]} 24. Ne2 {[%emt 0:10:16]} Raf8 {[%emt 0:07:47]} 25. g3 {[%emt 0:09:12]} fxg3 {[%emt 0:01:19]} 26. Nxg3 {[%emt 0:00:52]} Bg5 {[%emt 0:00:16]} 27. Nf5 {[%emt 0:02:07]} Bxf5 {[%emt 0:00:15]} 28. exf5 {[%emt 0:00:30]} Bxd2 {[%emt 0:00:13]} 29. Rcd1 {[%emt 0:00:36]} Be3 {[%emt 0:00:12]} 30. Qh2 {[%emt 0:00:26]} Bxg1 {[%emt 0:00:05]} 31. Rxg1 {[%emt 0:00:13]} gxh3 {[%emt 0:00:05]} 32. f6 {[%emt 0:00:18]} Rxg1+ {[%emt 0:00:11]} 33. Qxg1 {[%emt 0:00:07]} Rg8 {[%emt 0:00:11]} 34. Qf1 {[%emt 0:00:21]} h2 35. f7 {[%emt 0:00:16]} Rg1+ {[%emt 0:00:18]} 36. Qxg1 {[%emt 0:00:07]} hxg1=Q+ {[%emt 0:00:00]} 37. Kxg1 {[%emt 0:00:00]} Qg6+ {[%emt 0:00:09]} 38. Kh2 {[%emt 0:00:07]} Qxf7 {[%emt 0:00:05]} 39. b4 {[%emt 0:00:04]} e4 {[%emt 0:00:06]} 40. a4 {[%emt 0:00:29]} e3 {[%emt 0:00:06]} 41. c5 {[%emt 0:00:16]} e2 {[%emt 0:00:03]} 42. c6 {[%emt 0:00:09]} e1=Q {[%emt 0:00:09]} 43. cxb7 {[%emt 0:00:11]} Qff2+ {[%emt 0:00:08]} 44. Kh3 {[%emt 0:00:13]} Qg3# {[%emt 0:00:04]} 0-1

[Event "2nd Kalyan Dombivali 2019"]
[Site "Kalyan"]
[Date "2019.01.29"]
[Round "1.8"]
[White "Saranya, Y."]
[Black "Khadilkar, Shourya"]
[Result "1-0"]
[ECO "C45"]
[WhiteElo "1961"]
[BlackElo "1111"]
[Annotator "NA RC"]
[PlyCount "81"]
[EventDate "2019.01.28"]
[EventType "swiss"]
[EventRounds "10"]
[EventCountry "IND"]
[SourceTitle "playchess.com"]
[Source "ChessBase"]
[SourceQuality "1"]
[TimeControl "5400+30"]

1. e4 {[%emt 0:00:00]} e5 {[%emt 0:00:00]} 2. Nf3 {[%emt 0:00:00]} Nc6 3. d4 {[%emt 0:00:00]} exd4 {[%emt 0:00:00]} 4. Nxd4 {[%emt 0:00:00]} Bc5 {[%emt 0:00:00]} 5. Nxc6 {[%emt 0:00:00]} bxc6 {[%emt 0:00:06]} 6. Bd3 {[%emt 0:00:43]} d5 {[%emt 0:00:18]} 7. O-O {[%emt 0:00:44]} Nf6 {[%emt 0:00:13]} 8. Nc3 {[%emt 0:01:31]} O-O {[%emt 0:00:26]} 9. Bg5 {[%emt 0:01:27]} Be7 {[%emt 0:01:07]} 10. exd5 {[%emt 0:08:00]} cxd5 {[%emt 0:00:26]} 11. Bxf6 {[%emt 0:03:12]} Bxf6 {[%emt 0:00:12]} 12. Nxd5 {[%emt 0:00:16]} Bxb2 {[%emt 0:00:33]} 13. Rb1 {[%emt 0:00:07]} Bf6 {[%emt 0:00:50]} 14. Qh5 {[%emt 0:00:37]} g6 {[%emt 0:00:13]} 15. Qf3 {[%emt 0:00:11]} Bg7 {[%emt 0:00:16]} 16. Nf6+ {[%emt 0:04:33]} Qxf6 {[%emt 0:01:48]} 17. Qxa8 {[%emt 0:00:09]} Bh3 {[%emt 0:00:20]} 18. Qe4 {[%emt 0:01:38]} Bf5 {[%emt 0:00:21]} 19. Qf3 {[%emt 0:00:09]} Bxd3 {[%emt 0:00:26]} 20. Qxf6 {[%emt 0:00:08]} Bxf6 {[%emt 0:00:11]} 21. cxd3 {[%emt 0:00:05]} Rd8 {[%emt 0:00:16]} 22. Rfd1 {[%emt 0:00:12]} Bd4 {[%emt 0:00:10]} 23. Rb4 {[%emt 0:02:06]} c5 {[%emt 0:00:27]} 24. Rbb1 {[%emt 0:01:08]} Kg7 {[%emt 0:00:57]} 25. Kf1 {[%emt 0:00:07]} Kf6 {[%emt 0:00:12]} 26. Rb7 {[%emt 0:00:34]} Ra8 {[%emt 0:00:20]} 27. Rdb1 {[%emt 0:00:23]} Ke6 {[%emt 0:00:30]} 28. Rb8 {[%emt 0:00:12]} Rxb8 {[%emt 0:00:05]} 29. Rxb8 {[%emt 0:00:02]} Bc3 {[%emt 0:00:48]} 30. a3 {[%emt 0:01:08]} Ba5 {[%emt 0:00:42]} 31. Rb7 {[%emt 0:00:29]} Bb6 {[%emt 0:00:24]} 32. Ke2 {[%emt 0:00:11]} h5 {[%emt 0:00:11]} 33. Kd2 {[%emt 0:00:59]} Ba5+ {[%emt 0:01:02]} 34. Kc2 {[%emt 0:00:02]} Bb6 {[%emt 0:00:19]} 35. f3 {[%emt 0:00:23]} f6 {[%emt 0:00:38]} 36. Kb3 {[%emt 0:00:20]} Kd5 {[%emt 0:01:19]} 37. Rd7+ {[%emt 0:00:11]} Ke6 {[%emt 0:00:12]} 38. Rg7 {[%emt 0:00:04]} g5 {[%emt 0:00:09]} 39. Kc4 {[%emt 0:00:07]} Ba5 {[%emt 0:01:54]} 40. Rxa7 {[%emt 0:00:27]} Be1 {[%emt 0:00:08]} 41. a4 {[%emt 0:00:08]} 1-0

[Event "2nd Kalyan Dombivali 2019"]
[Site "Kalyan"]
[Date "2019.01.29"]
[Round "1.9"]
[White "Iksha, Soni"]
[Black "Kadam, Om Manish"]
[Result "0-1"]
[ECO "B92"]
[WhiteElo "1110"]
[BlackElo "1943"]
[Annotator "NA RC"]
[PlyCount "112"]
[EventDate "2019.01.28"]
[EventType "swiss"]
[EventRounds "10"]
[EventCountry "IND"]
[SourceTitle "playchess.com"]
[Source "ChessBase"]
[SourceQuality "1"]
[TimeControl "5400+30"]

1. e4 {[%emt 0:00:00]} c5 {[%emt 0:00:00]} 2. Nf3 {[%emt 0:00:00]} d6 {[%emt 0:00:00]} 3. d4 {[%emt 0:00:08]} cxd4 {[%emt 0:00:07]} 4. Nxd4 {[%emt 0:00:23]} Nf6 {[%emt 0:00:17]} 5. Nc3 {[%emt 0:00:26]} a6 {[%emt 0:00:08]} 6. Be2 {[%emt 0:00:11]} e5 {[%emt 0:00:08]} 7. Nf3 {[%emt 0:00:54]} Be7 {[%emt 0:00:50]} 8. O-O {[%emt 0:01:13]} O-O {[%emt 0:00:05]} 9. Be3 {[%emt 0:00:27]} b5 {[%emt 0:00:46]} 10. Bd3 {[%emt 0:01:17]} Bb7 {[%emt 0:00:19]} 11. Qd2 {[%emt 0:00:54]} Nbd7 {[%emt 0:01:25]} 12. Rad1 {[%emt 0:00:53]} Qc7 {[%emt 0:00:34]} 13. a3 {[%emt 0:00:21]} Rac8 {[%emt 0:00:37]} 14. Rfe1 {[%emt 0:01:24]} Rfe8 {[%emt 0:00:18]} 15. h3 {[%emt 0:05:08]} Bf8 {[%emt 0:00:14]} 16. Nh4 {[%emt 0:02:24]} g6 {[%emt 0:10:21]} 17. Bh6 Rcd8 18. Qe3 {[%emt 0:09:32]} Bc6 {[%emt 0:14:29]} 19. Qg5 {[%emt 0:02:42]} Nh5 {[%emt 0:04:04]} 20. Ne2 {[%emt 0:05:10]} Be7 {[%emt 0:02:21]} 21. Qg4 {[%emt 0:00:49]} Ndf6 {[%emt 0:00:57]} 22. Qf3 {[%emt 0:01:52]} d5 {[%emt 0:00:33]} 23. Ng3 {[%emt 0:00:32]} Nxg3 {[%emt 0:00:50]} 24. Qxg3 {[%emt 0:01:00]} Nh5 {[%emt 0:02:15]} 25. Qg4 {[%emt 0:01:46]} dxe4 {[%emt 0:02:13]} 26. Bxe4 {[%emt 0:00:48]} Nf6 {[%emt 0:00:11]} 27. Qg3 {[%emt 0:02:29]} Rxd1 {[%emt 0:00:36]} 28. Rxd1 {[%emt 0:00:21]} Nxe4 {[%emt 0:00:02]} 29. Qg4 {[%emt 0:01:59]} Qa7 {[%emt 0:00:24]} 30. Be3 {[%emt 0:03:01]} Bc5 {[%emt 0:00:43]} 31. Nf5 {[%emt 0:03:18]} Nxf2 {[%emt 0:01:37]} 32. Bxf2 {[%emt 0:00:58]} Bxf2+ {[%emt 0:00:02]} 33. Kh1 {[%emt 0:02:30]} Bc5 {[%emt 0:04:05]} 34. Nh6+ {[%emt 0:00:40]} Kg7 {[%emt 0:00:09]} 35. Nf5+ {[%emt 0:00:17]} Kh8 {[%emt 0:00:12]} 36. Nh6 {[%emt 0:00:12]} Bf8 {[%emt 0:00:21]} 37. Qg5 {[%emt 0:05:27]} Bxh6 {[%emt 0:00:41]} 38. Qxh6 {[%emt 0:00:25]} Qf2 {[%emt 0:00:03]} 39. Qg5 {[%emt 0:01:01]} Qf4 {[%emt 0:00:24]} 40. Qxf4 {[%emt 0:01:42]} exf4 {[%emt 0:00:01]} 41. Rd4 {[%emt 0:03:05]} Re1+ {[%emt 0:00:07]} 42. Kh2 {[%emt 0:00:13]} Re2 {[%emt 0:00:01]} 43. Rd3 {[%emt 0:00:54]} Rxg2+ {[%emt 0:00:02]} 44. Kh1 {[%emt 0:00:17]} Rd2+ {[%emt 0:00:13]} 45. Kg1 {[%emt 0:00:11]} Rxd3 {[%emt 0:00:02]} 46. cxd3 {[%emt 0:00:05]} Kg7 {[%emt 0:00:05]} 47. Kf2 {[%emt 0:00:27]} Kf6 {[%emt 0:00:01]} 48. b4 {[%emt 0:00:39]} Ke5 {[%emt 0:00:01]} 49. h4 {[%emt 0:00:40]} Kd4 {[%emt 0:00:02]} 50. Ke2 {[%emt 0:00:26]} f3+ {[%emt 0:00:01]} 51. Kf2 {[%emt 0:00:33]} Kxd3 {[%emt 0:00:02]} 52. Kf1 {[%emt 0:00:36]} Ke3 {[%emt 0:00:01]} 53. a4 {[%emt 0:00:22]} h6 {[%emt 0:00:09]} 54. axb5 {[%emt 0:00:10]} Bxb5+ {[%emt 0:00:01]} 55. Ke1 {[%emt 0:01:13]} Be2 {[%emt 0:00:04]} 56. b5 {[%emt 0:00:15]} f2# {[%emt 0:00:01]} 0-1

[Event "2nd Kalyan Dombivali 2019"]
[Site "Kalyan"]
[Date "2019.01.29"]
[Round "1.10"]
[White "Ahmed, Feroz"]
[Black "Dandawate, Abhishek"]
[Result "1-0"]
[ECO "A31"]
[WhiteElo "1919"]
[BlackElo "1108"]
[Annotator "NA RC"]
[PlyCount "125"]
[EventDate "2019.01.28"]
[EventType "swiss"]
[EventRounds "10"]
[EventCountry "IND"]
[SourceTitle "playchess.com"]
[Source "ChessBase"]
[SourceQuality "1"]
[TimeControl "5400+30"]

1. c4 {[%emt 0:00:00]} c5 {[%emt 0:00:00]} 2. Nf3 {[%emt 0:00:00]} Nf6 {[%emt 0:00:00]} 3. d4 {[%emt 0:00:00]} cxd4 {[%emt 0:00:43]} 4. Nxd4 {[%emt 0:00:40]} g6 {[%emt 0:01:24]} 5. Nc3 {[%emt 0:02:32]} Bg7 {[%emt 0:01:16]} 6. e4 {[%emt 0:05:03]} d6 {[%emt 0:00:45]} 7. Be2 {[%emt 0:00:40]} Nc6 {[%emt 0:01:33]} 8. Nc2 {[%emt 0:05:53]} O-O {[%emt 0:04:18]} 9. O-O {[%emt 0:01:08]} Be6 {[%emt 0:03:02]} 10. Rb1 {[%emt 0:12:47]} Rc8 {[%emt 0:16:19]} 11. b3 {[%emt 0:02:12]} a6 {[%emt 0:08:01]} 12. Bb2 {[%emt 0:02:08]} Qc7 {[%emt 0:07:53]} 13. Kh1 {[%emt 0:06:06]} Na7 {[%emt 0:03:45]} 14. Nd4 {[%emt 0:05:21]} Bd7 {[%emt 0:03:23]} 15. a4 {[%emt 0:07:41]} Nc6 {[%emt 0:00:53]} 16. Nc2 {[%emt 0:02:16]} Na5 {[%emt 0:09:02]} 17. Ne3 {[%emt 0:01:15]} Be6 {[%emt 0:06:31]} 18. f4 {[%emt 0:05:41]} Qb6 {[%emt 0:01:46]} 19. Bc1 {[%emt 0:00:43]} Nc6 {[%emt 0:14:33]} 20. f5 {[%emt 0:05:37]} Bd7 {[%emt 0:00:28]} 21. Ned5 {[%emt 0:01:24]} Nxd5 {[%emt 0:02:53]} 22. Nxd5 {[%emt 0:00:03]} Qd4 {[%emt 0:01:52]} 23. Qc2 {[%emt 0:02:24]} e6 {[%emt 0:01:30]} 24. Bb2 {[%emt 0:04:09]} Qc5 {[%emt 0:01:25]} 25. Nf6+ {[%emt 0:07:17]} Bxf6 {[%emt 0:00:52]} 26. Bxf6 {[%emt 0:00:06]} Qe3 {[%emt 0:03:10]} 27. Rf3 {[%emt 0:00:27]} Nd4 {[%emt 0:00:38]} 28. Rxe3 {[%emt 0:01:36]} Nxc2 {[%emt 0:00:17]} 29. Rc3 {[%emt 0:00:07]} Nb4 {[%emt 0:00:21]} 30. Be7 {[%emt 0:01:28]} Rfe8 {[%emt 0:00:39]} 31. Bxd6 {[%emt 0:00:02]} Nc6 {[%emt 0:00:29]} 32. fxg6 {[%emt 0:00:18]} fxg6 {[%emt 0:00:44]} 33. Bg4 {[%emt 0:03:08]} Rcd8 {[%emt 0:00:52]} 34. h4 {[%emt 0:05:02]} Bc8 {[%emt 0:00:31]} 35. e5 {[%emt 0:00:31]} Nd4 {[%emt 0:01:06]} 36. h5 {[%emt 0:00:15]} Nf5 {[%emt 0:00:29]} 37. hxg6 {[%emt 0:00:03]} hxg6 {[%emt 0:00:19]} 38. c5 {[%emt 0:01:29]} Rd7 {[%emt 0:00:28]} 39. b4 {[%emt 0:01:05]} Rh7+ {[%emt 0:00:14]} 40. Kg1 {[%emt 0:00:01]} Rh4 {[%emt 0:00:15]} 41. Bf3 {[%emt 0:02:53]} Nd4 {[%emt 0:00:48]} 42. Bd1 {[%emt 0:02:06]} Kf7 {[%emt 0:01:18]} 43. b5 {[%emt 0:01:08]} axb5 {[%emt 0:01:03]} 44. axb5 {[%emt 0:00:02]} Bd7 {[%emt 0:00:36]} 45. c6 {[%emt 0:00:23]} bxc6 {[%emt 0:00:46]} 46. b6 {[%emt 0:00:01]} Bc8 {[%emt 0:00:28]} 47. b7 {[%emt 0:00:02]} Bxb7 {[%emt 0:00:32]} 48. Rxb7+ {[%emt 0:00:03]} Kg8 {[%emt 0:00:13]} 49. Rg3 {[%emt 0:00:54]} Re4 {[%emt 0:00:33]} 50. Rxg6+ {[%emt 0:00:09]} Kh8 {[%emt 0:00:06]} 51. Rh6+ {[%emt 0:02:51]} Kg8 {[%emt 0:00:54]} 52. Kf2 {[%emt 0:03:19]} c5 {[%emt 0:01:10]} 53. Bxc5 {[%emt 0:00:36]} Nf5 {[%emt 0:00:51]} 54. Rhh7 {[%emt 0:00:54]} Rd8 {[%emt 0:00:39]} 55. Bf3 {[%emt 0:01:33]} Rd2+ {[%emt 0:00:29]} 56. Kg1 {[%emt 0:00:02]} Re1+ {[%emt 0:00:47]} 57. Kh2 {[%emt 0:00:01]} Rd8 {[%emt 0:01:09]} 58. Bg4 {[%emt 0:00:39]} Rh1+ {[%emt 0:00:53]} 59. Kxh1 {[%emt 0:00:18]} Ng3+ {[%emt 0:00:23]} 60. Kh2 {[%emt 0:00:26]} Nf1+ {[%emt 0:00:30]} 61. Kg1 {[%emt 0:00:02]} Rd7 {[%emt 0:00:17]} 62. Rbxd7 {[%emt 0:00:16]} Ng3 {[%emt 0:00:05]} 63. Rdg7# {[%emt 0:00:15]} 1-0